[Event "1st FIDE Olympiad DIS 2023"]
[Site "Belgrade"]
[Date "2023.01.31"]
[Round "2.3"]
[White "Campos, Eugenio"]
[Black "Piekielny, Pawel"]
[Result "1-0"]
[ECO "E41"]
[WhiteElo "2227"]
[BlackElo "2230"]
[Annotator "TA"]
[PlyCount "89"]
[EventDate "2023.01.30"]
[EventType "team-tourn"]
[EventCountry "SRB"]
[SourceTitle "playchess.com"]
[Source "ChessBase"]
[SourceQuality "1"]
[WhiteTeam "Angola"]
[BlackTeam "Poland"]
[WhiteTeamCountry "ANG"]
[BlackTeamCountry "POL"]
[TimeControl "40/5400+30:1800+30"]

{[%evp 19,89,28,51,60,70,-82,-84,-79,-86,-111,-101,-122,-118,-111,-118,-129,-122,-120,-125,-116,-114,-129,-111,-94,-96,-150,-147,-155,-133,-176,-137,-293,-52,-37,163,182,175,153,175,127,131,40,606,585,590,573,574,379,1783,1783,1275,1365,29990,29977,29977,29978,29978,29979,29978,29976,12837,2924,29990,29991,29991,29992,29992,29992,29992,29993,29998,29999]} 1. d4 {[%emt 0:00:13]} e6 {[%emt 0:00:15]} 2. c4 {[%emt 0:00:20]} Nf6 {[%emt 0:00:05]} 3. Nc3 {[%emt 0:00:46]} Bb4 {[%emt 0:00:34]} 4. e3 {[%emt 0:00:17]} c5 {[%emt 0:01:28]} 5. Bd3 {[%emt 0:00:53]} Nc6 {[%emt 0:00:41]} 6. Nge2 {[%emt 0:00:38]} Bxc3+ {[%emt 0:06:24]} 7. bxc3 {[%emt 0:00:42]} d6 {[%emt 0:00:43]} 8. O-O {[%emt 0:00:21]} e5 {[%emt 0:03:02]} 9. d5 {[%emt 0:11:01]} Ne7 {[%emt 0:02:38]} 10. Ng3 {[%emt 0:00:23]} O-O {[%emt 0:02:25]} 11. f4 {[%emt 0:04:19] E41: Nimzo-Indian: Rubinstein: 4...c5 5 Bd3, including Hübner Variation.} exf4 {[%emt 0:21:37] [#]} 12. Rxf4 $146 {[%emt 0:05:48] [#]} (12. exf4 $14 b5 13. cxb5) ({Predecessor:} 12. exf4 Ng6 13. f5 Ne5 14. Bg5 h6 15. Bh4 g5 16. fxg6 fxg6 17. Qd2 Nxd3 18. Qxh6 Ne5 19. Rxf6 Rxf6 {1-0 Peralta,F (2580)-Tomazini,Z (2439) Gibraltar Masters 17th 2019 (2)}) 12... Ng6 $1 $17 {[%emt 0:03:10]} 13. Bxg6 {[%emt 0:06:00] Black is better.} hxg6 {[%emt 0:01:24]} 14. Qe2 {[%emt 0:06:30]} b6 {[%emt 0:04:09]} 15. h4 {[%emt 0:06:20]} Ba6 {[%emt 0:06:54] ...Nxd5 is the strong threat.} 16. e4 {[%emt 0:01:39]} Nd7 {[%emt 0:02:36]} 17. Nf1 {[%emt 0:01:19]} Ne5 {[%emt 0:02:50]} 18. Ne3 {[%emt 0:00:12]} Qd7 {[%emt 0:04:48]} 19. a4 {[%emt 0:00:28]} Rae8 {[%emt 0:04:56]} 20. a5 {[%emt 0:01:32]} b5 {[%emt 0:00:40][%cal Rb5c4]} 21. h5 {[%emt 0:06:13] [#]} g5 $1 {[%emt 0:04:48]} ({Much weaker is} 21... Nxc4 $6 22. Nxc4 bxc4 23. hxg6 fxg6 24. Rxf8+ Rxf8 25. Bg5 $11) 22. Rf5 {[%emt 0:00:57]} ({Better is} 22. Rf2) 22... f6 {[%emt 0:03:55]} ({Inferior is} 22... Nxc4 23. Rxg5 f6 24. Rg6 Rxe4 25. Qf3 Rxe3 26. Bxe3 $11) 23. Rf2 {[%emt 0:12:03]} Nxc4 {[%emt 0:04:41]} 24. Nf5 {[%emt 0:00:47]} Re5 {[%emt 0:03:21]} 25. Qg4 $2 {[%emt 0:00:22]} (25. h6 $17 {keeps fighting.} g6 26. Ng7) 25... Qe8 $2 {[%emt 0:02:32]} (25... Bc8 $19 {Hoping for ...Qe8.} 26. Qf3 Qe8) 26. Bxg5 $1 $15 {[%emt 0:01:02]} Rxe4 $2 {[%emt 0:01:09]} (26... fxg5 $15 {stays ahead.} 27. Qxg5 Rfxf5 28. Rxf5 Rxf5 29. Qxf5 Bc8) 27. Bf4 $18 {[%emt 0:00:16][%csl Gf5][%cal Rg4g7,Bg5f4,Bf4g3,Bg3h2][%mdl 32]} Rf7 {[%emt 0:01:12]} 28. Nh6+ {[%emt 0:01:15]} Kh8 {[%emt 0:01:07]} 29. Nxf7+ {[%emt 0:00:59]} Qxf7 {[%emt 0:00:04]} 30. Qf5 {[%emt 0:01:39]} (30. Qf3 $16 Qe7 31. Rb1) 30... Qe7 {[%emt 0:01:36][%mdl 8192]} (30... Qe8 $14) 31. h6 {[%emt 0:02:16] Black must now prevent hxg7+.} g5 {[%emt 0:05:14]} 32. Bg3 {[%emt 0:00:32] And now Qg6 would win.} Re3 {[%emt 0:01:53]} 33. Bh2 {[%emt 0:00:49]} Re1+ $2 {[%emt 0:03:14]} (33... b4 34. Qxf6+ Qxf6 35. Rxf6 b3) 34. Rxe1 {[%emt 0:01:14]} Qxe1+ {[%emt 0:00:05]} 35. Rf1 {[%emt 0:00:08]} Qxc3 {[%emt 0:01:07]} 36. Qg6 {[%emt 0:02:01][%csl Gh6][%cal Rg6g7]} Qe3+ {[%emt 0:00:12]} 37. Kh1 {[%emt 0:00:19][%csl Gh6][%cal Rg6g7]} Qe7 {[%emt 0:00:11]} 38. Bg3 {[%emt 0:01:59]} ({Worse is} 38. Rxf6 Qe1+ 39. Bg1 Qh4+ 40. Bh2 Qe1+ 41. Bg1 Qh4+ 42. Bh2 Qe1+ $11) 38... Bb7 {[%emt 0:01:05]} 39. Rxf6 {[%emt 0:02:37]} Bxd5 {[%emt 0:00:08]} 40. Qxg5 {[%emt 0:00:56]} (40. Qf5 $142 Bg8 41. Rf8 {[%mdl 64] Remove Defender}) 40... Ne3 {[%emt 0:01:03]} 41. Bxd6 {[%emt 0:32:17] White mates.} Qd7 {[%emt 0:03:03]} 42. Qxe3 {[%emt 0:00:00]} Qg4 {[%emt 0:00:47]} 43. Rf8+ {[%emt 0:00:00]} (43. Bxc5 $2 Qxg2#) 43... Kh7 {[%emt 0:00:23]} 44. Qe7+ {[%emt 0:00:00]} (44. Qxc5 $2 Qxg2#) 44... Kxh6 {[%emt 0:00:05]} 45. Qf6+ {[%emt 0:00:00] An entertaining game by Campos.   Weighted Error Value: White=0.28 (precise) /Black=0.67} 1-0

[Event "1st FIDE Olympiad DIS 2023"]
[Site "Belgrade"]
[Date "2023.01.31"]
[Round "2.3"]
[White "Nestorovic, Vladimir"]
[Black "Shayusupov, Marsel"]
[Result "1/2-1/2"]
[ECO "E05"]
[WhiteElo "2171"]
[BlackElo "1580"]
[Annotator "TA"]
[PlyCount "96"]
[EventDate "2023.01.30"]
[EventType "team-tourn"]
[EventCountry "SRB"]
[SourceTitle "playchess.com"]
[Source "ChessBase"]
[SourceQuality "1"]
[WhiteTeam "Croatia"]
[BlackTeam "Uzbekistan"]
[WhiteTeamCountry "CRO"]
[BlackTeamCountry "UZB"]
[TimeControl "40/5400+30:1800+30"]

{[%evp 18,96,0,-11,6,0,0,-26,-21,-24,-24,-19,0,0,0,0,0,0,0,0,0,0,0,0,2,6,6,8,56,52,67,17,25,24,16,4,52,28,30,12,20,18,18,26,75,72,71,80,82,86,277,214,402,402,966,908,778,33,33,33,33,33,47,48,48,8,14,10,10,0,0,0,6,3,3,0,64,64,63,0,0]} 1. d4 {[%emt 0:00:03]} Nf6 {[%emt 0:00:16]} 2. Nf3 {[%emt 0:00:31]} e6 {[%emt 0:00:10]} 3. g3 {[%emt 0:00:11]} d5 {[%emt 0:00:31]} 4. Bg2 {[%emt 0:00:06]} Be7 {[%emt 0:00:06]} 5. O-O {[%emt 0:00:10]} O-O {[%emt 0:00:09]} 6. c4 {[%emt 0:01:56]} dxc4 {[%emt 0:01:46]} 7. Qc2 {[%emt 0:03:00]} a6 {[%emt 0:01:07]} 8. Qxc4 {[%emt 0:03:33]} b5 {[%emt 0:00:20]} 9. Qc2 {[%emt 0:02:40]} Bb7 {[%emt 0:01:12]} 10. Rd1 {[%emt 0:01:56]} Be4 {[%emt 0:04:08] E05: Open Catalan: 5 Nf3 Be7.} 11. Qd2 {[%emt 0:08:22]} b4 {[%emt 0:01:50]} 12. Ne5 {[%emt 0:04:23]} Bxg2 $1 {[%emt 0:01:11] Black has an edge.} 13. Kxg2 {[%emt 0:00:08]} Qd5+ {[%emt 0:01:16] [#]} 14. f3 $146 {[%emt 0:00:20]} ({Predecessor:} 14. Kg1 c5 15. Nf3 Nc6 16. dxc5 Qxc5 17. Qe1 Rfd8 18. Be3 Qh5 19. Nbd2 Nd5 20. Nf1 {0-1 Braun,J-Filatov,L (2355) North American op 1995 (1)}) 14... c5 {[%emt 0:00:28]} (14... Nbd7 $5 {[%cal Rd7e5]}) 15. e4 {[%emt 0:02:15]} Qxd4 {[%emt 0:00:51]} 16. Qxd4 {[%emt 0:00:14]} cxd4 {[%emt 0:00:02]} 17. Rxd4 {[%emt 0:00:29]} Rc8 {[%emt 0:00:51]} 18. Nd2 {[%emt 0:01:32]} Nc6 {[%emt 0:05:18]} 19. Nxc6 {[%emt 0:00:30]} Rxc6 {[%emt 0:00:02]} 20. Rc4 {[%emt 0:00:47]} Rxc4 {[%emt 0:06:36]} 21. Nxc4 {[%emt 0:00:30]} Rc8 {[%emt 0:02:43]} 22. b3 {[%emt 0:00:36]} Nd7 {[%emt 0:03:31]} (22... Ne8 $1 $11) 23. Be3 $14 {[%emt 0:00:54]} Bf6 {[%emt 0:02:44]} 24. Rd1 {[%emt 0:00:19]} (24. Rc1 $1 $14) 24... Ne5 $11 {[%emt 0:00:03]} 25. Nxe5 {[%emt 0:07:21]} Bxe5 {[%emt 0:00:02][%mdl 4096] Endgame KRB-KRB} 26. Kf2 {[%emt 0:01:03]} h5 {[%emt 0:12:40]} (26... Kf8 $11) 27. Ke2 {[%emt 0:02:58]} Bb2 {[%emt 0:03:39]} 28. h3 {[%emt 0:11:57]} Rc6 {[%emt 0:07:08]} 29. g4 {[%emt 0:00:45]} hxg4 {[%emt 0:00:31]} 30. hxg4 {[%emt 0:00:02]} e5 {[%emt 0:06:11]} (30... Kf8 $11) 31. Rd5 $16 {[%emt 0:10:38]} Kh7 {[%emt 0:16:49]} 32. Rc5 {[%emt 0:01:12]} Rd6 {[%emt 0:00:01]} 33. Bd2 {[%emt 0:04:02]} Rd4 $2 {[%emt 0:08:28]} (33... Rb6 $16) 34. Rc4 {[%emt 0:01:48]} (34. Rxe5 $2 Rxd2+ 35. Kxd2 Bxe5 $19) 34... Rxc4 $2 {[%emt 0:00:06]} (34... Rd8 35. Bxb4 (35. Rxb4 Bd4 $16) 35... f6) 35. bxc4 $18 {[%emt 0:00:12][%cal Oc4c5] [#] Strongly threatening c5! KB-KB} a5 {[%emt 0:00:19]} (35... Kg6 $142 36. c5 (36. Bxb4 Kf6 $16) 36... Kf6 37. Bxb4 Ke6) 36. c5 {[%emt 0:00:03] Threatens to win with c6.} Bd4 {[%emt 0:03:02]} 37. Be3 $2 {[%emt 0:02:53]} (37. c6 $18 Bb6 38. Kd3) 37... a4 $1 $14 {[%emt 0:00:01]} 38. c6 {[%emt 0:05:42] Threatening mate with Bxd4.} b3 {[%emt 0:00:43]} 39. axb3 {[%emt 0:05:47]} a3 {[%emt 0:01:00]} 40. c7 {[%emt 0:00:43] [#] Bxd4 would kill now.} ({Resist} 40. Bxd4 exd4 41. c7 a2 $16) 40... a2 {[%emt 0:00:12]} 41. Bxd4 {[%emt 0:30:47]} (41. c8=B $2 {loses.} a1=Q 42. Bxd4 exd4 $19) 41... exd4 {[%emt 0:30:02]} 42. c8=Q {[%emt 0:00:22] White wants to mate with Qa6.} (42. c8=B a1=Q 43. e5 Qb2+ 44. Kd3 Qxb3+ 45. Kxd4 Qb6+ 46. Kd5 Qd8+ 47. Kc5 Qxc8+ 48. Kd4 Qd7+ 49. Kc3 Qd5 50. f4 Qf3+ 51. Kd4 Qxf4+ 52. Kd3 Qxg4 53. Ke3 Qd1 54. Kf2 Kg6 55. Ke3 Kf5 56. e6 fxe6 57. Kf2 Kf4 58. Kg2 Qd2+ 59. Kg1 Kf3 60. Kh1 Qg2#) 42... a1=Q $11 {[%emt 0:00:09] Inhibits Qa6. KQ-KQ} 43. Qf5+ {[%emt 0:06:29]} Kg8 {[%emt 0:00:09]} 44. Qc8+ {[%emt 0:00:20]} Kh7 {[%emt 0:00:23]} 45. Qc2 {[%emt 0:00:09]} Qg1 {[%emt 0:00:02]} 46. Qd3 {[%emt 0:00:07] Repels Qe3+} Qa1 {[%emt 0:00:06]} (46... Qg2+ $11 47. Kd1 Qh1+ 48. Kc2 Qg2+ 49. Qd2 Qxf3) 47. e5+ $14 {[%emt 0:00:05]} g6 {[%emt 0:00:08]} 48. f4 {[%emt 0:00:01]} ({White should try} 48. Qd2 $14) 48... Qg1 $1 {[%emt 0:00:06] Weighted Error Value: White=0.32/Black=0.21 (precise)} 1/2-1/2

[Event "1st FIDE Olympiad DIS 2023"]
[Site "Belgrade"]
[Date "2023.01.31"]
[Round "2.4"]
[White "Stachanczyk, Jacek"]
[Black "Andriienko, Artom"]
[Result "1-0"]
[ECO "B43"]
[WhiteElo "2189"]
[BlackElo "1693"]
[Annotator "TA"]
[PlyCount "26"]
[EventDate "2023.01.30"]
[EventType "team-tourn"]
[EventCountry "SRB"]
[SourceTitle "playchess.com"]
[Source "ChessBase"]
[SourceQuality "1"]
[WhiteTeam "Poland"]
[BlackTeam "Ukraine"]
[WhiteTeamCountry "POL"]
[BlackTeamCountry "UKR"]
[TimeControl "40/5400+30:1800+30"]

{[%evp 9,26,8,44,31,31,31,48,46,54,52,51,47,64,67,116,112,138,145,176]} 1. e4 {[%emt 0:00:04]} c5 {[%emt 0:00:15]} 2. Nf3 {[%emt 0:00:02]} e6 {[%emt 0:00:26]} 3. Nc3 {[%emt 0:00:28]} a6 {[%emt 0:04:21]} 4. d4 {[%emt 0:00:11]} cxd4 {[%emt 0:00:23]} 5. Nxd4 {[%emt 0:00:06]} Qc7 {[%emt 0:01:17]} 6. Qf3 {[%emt 0:01:21] B43: Sicilian: Kan Variation: 5 Nc3.} Nc6 {[%emt 0:06:57]} 7. Nxc6 {[%emt 0:01:01]} Qxc6 {[%emt 0:01:53]} 8. Qg3 {[%emt 0:02:13] White is slightly better.} Nf6 {[%emt 0:10:56]} 9. Bd3 {[%emt 0:00:54]} d6 {[%emt 0:14:43]} 10. O-O {[%emt 0:11:17]} b5 {[%emt 0:12:50]} 11. Re1 {[%emt 0:06:44]} Bb7 {[%emt 0:04:21]} (11... Rb8 $14 {should be considered.}) 12. a4 $16 {[%emt 0:05:24] White is more active.} b4 {[%emt 0:09:13] [#]} 13. Nd5 {[%emt 0:00:38][%mdl 512] [#]} Bc8 $146 {[%emt 0:00:00] Black did not feel at home in the position after the opening.   Weighted Error Value: White=0.02 (flawless) /Black=0.19 (very precise)} (13... exd5 $2 14. exd5+ {[%mdl 64] Discovered Attack} Kd7 15. dxc6+ $18) (13... Nd7 14. Nxb4) ({Predecessor:} 13... e5 14. Nxb4 Qc7 15. a5 h5 16. h3 h4 17. Qf3 Be7 18. c4 Nh5 19. Nd5 Bxd5 20. cxd5 g5 21. b4 Qc3 22. Bb5+ {1-0 Kecic,S (2235)-Kodela,M (2025) Ljubljana op 9th 1998 (7)}) 1-0

[Event "1st FIDE Olympiad DIS 2023"]
[Site "Belgrade"]
[Date "2023.01.31"]
[Round "2.4"]
[White "Kimsanboyev, Axadxon"]
[Black "Cajzler, Hinko"]
[Result "1-0"]
[ECO "A65"]
[WhiteElo "1600"]
[BlackElo "2060"]
[Annotator "TA"]
[PlyCount "95"]
[EventDate "2023.01.30"]
[EventType "team-tourn"]
[EventCountry "SRB"]
[SourceTitle "playchess.com"]
[Source "ChessBase"]
[SourceQuality "1"]
[WhiteTeam "Uzbekistan"]
[BlackTeam "Croatia"]
[WhiteTeamCountry "UZB"]
[BlackTeamCountry "CRO"]
[TimeControl "40/5400+30:1800+30"]

{[%evp 13,95,29,44,18,14,16,54,58,60,62,70,16,18,20,6,0,1,-166,-187,-228,-108,-214,-83,-137,0,0,0,0,37,-291,-263,-623,-598,-608,-591,-556,-425,-768,-703,-655,-505,-465,0,-38,0,0,18,22,48,56,185,116,151,-41,149,193,185,185,185,164,185,181,174,174,179,154,387,377,365,373,365,370,397,393,387,384,366,386,454,387,615,587,1541,1066]} 1. d4 {[%emt 0:00:55]} Nf6 {[%emt 0:00:15]} 2. c4 {[%emt 0:00:17]} c5 {[%emt 0:00:59]} 3. d5 {[%emt 0:00:08]} e6 {[%emt 0:00:10]} 4. Nc3 {[%emt 0:00:10]} exd5 {[%emt 0:00:08]} 5. cxd5 {[%emt 0:00:07]} d6 {[%emt 0:00:05]} 6. e4 {[%emt 0:00:06]} g6 {[%emt 0:00:05]} 7. f3 {[%emt 0:00:06]} Bg7 {[%emt 0:00:16]} 8. Nge2 $1 {[%emt 0:00:08][%cal Bg1e2,Be2g3,Bg3h1][%mdl 4] outshines the older 8.Bg5. A65: Modern Benoni: 6 e4.} a6 {[%emt 0:00:11]} 9. a4 {[%emt 0:00:07] [#]} b6 $146 {[%emt 0:00:21]} ({Predecessor:} 9... Nbd7 10. Ng3 h5 11. Be2 h4 12. Nf1 Rb8 13. Ne3 Nh5 14. a5 Ne5 15. O-O Nf4 {1-0 Duda,J (2731)-Giri,A (2764) Julius Baer GenCup Prelim rapid 2022 (5)}) 10. Ng3 {[%emt 0:00:16] White is slightly better.} Nbd7 {[%emt 0:01:32]} 11. Be2 {[%emt 0:00:13]} h5 {[%emt 0:03:21][%cal Bh7h5,Bh5h4][%mdl 32]} 12. O-O {[%emt 0:00:51] White is more active.} (12. Bg5 $14) 12... h4 $11 {[%emt 0:02:08]} 13. Nh1 {[%emt 0:00:08]} Nh5 $1 {[%emt 0:00:29]} 14. Be3 {[%emt 0:01:54] Prevents Bd4} g5 $1 {[%emt 0:10:16]} 15. g3 $2 {[%emt 0:19:50]} (15. Nf2 $11) 15... hxg3 $1 $19 {[%emt 0:01:35]} 16. hxg3 {[%emt 0:00:05]} Ne5 {[%emt 0:10:11]} (16... Be5 $19 {has better winning chances. White must now prevent ...g4.} 17. Qd2 Bxg3 18. Bxg5 Rg8 19. Bxd8 Bf4+ {[%mdl 64] Discovered Attack} 20. Kf2 Bxd2) 17. Rf2 {[%emt 0:06:23]} (17. Kf2 $17 {was necessary.}) 17... Ng6 {[%emt 0:07:36]} (17... Nf4 $1 $19 {[%cal Od8f6] Threatens to win with ...Qf6!} 18. Rh2 (18. gxf4 $2 gxf4 19. Bxf4 Qh4 $19) 18... Rxh2 19. Kxh2 Qf6) 18. Qd2 {[%emt 0:09:04]} (18. Rh2 $142) 18... Bf6 {[%emt 0:02:35]} (18... Nhf4 $1 $17 {And now ...Nh3+ would win.} 19. Rh2 (19. gxf4 $2 gxf4 20. Bxf4 Nxf4 $19) 19... Nh3+ 20. Kf1 Be5) 19. Rh2 $11 {[%emt 0:04:13]} Qe7 {[%emt 0:03:59]} 20. Rf1 {[%emt 0:04:16]} Bd7 {[%emt 0:04:08]} (20... Qf8 $5) 21. Kg2 $2 {[%emt 0:19:03][%mdl 8192] [#]} (21. Rff2 $14) 21... Nhf4+ $1 $19 {[%emt 0:06:14]} 22. gxf4 $2 {[%emt 0:00:21]} (22. Kg1 Rxh2 23. Kxh2) 22... Rxh2+ {[%emt 0:00:13]} 23. Kxh2 {[%emt 0:00:05][%cal Rf4g5]} gxf4 {[%emt 0:00:11]} 24. Bf2 {[%emt 0:01:13]} Qf8 {[%emt 0:01:20]} 25. Rb1 {[%emt 0:12:10]} (25. Kg1 Qg7 26. Ng3 fxg3 27. Bxg3 Bd4+ 28. Rf2 Nh4 $19) (25. e5 $142 Bxe5 26. Re1 (26. Kg1 $2 Qg7 $19) 26... Qh8+ 27. Kg1) 25... Qh6+ {[%emt 0:02:03]} 26. Kg1 {[%emt 0:00:11]} Qg5+ {[%emt 0:02:21]} 27. Kf1 {[%emt 0:00:06][%cal Bg1f1,Bf1e1,Be1d1,Bd1c2,Bc2b1][%mdl 32]} Bh3+ $2 {[%emt 0:00:20]} (27... Qh5 $19 28. Bd1 (28. Kg1 $2 Ke7 $19) 28... Qxh1+ 29. Ke2 Bg4) 28. Ke1 $15 {[%emt 0:00:06]} Qg2 {[%emt 0:00:50]} (28... Bg2 {simplifies} 29. Ng3 fxg3 30. Qxg5 gxf2+ 31. Kxf2 Bxg5 32. Kxg2 Be3) 29. Kd1 $1 {[%emt 0:00:07]} Qxh1+ {[%emt 0:02:15]} 30. Kc2 {[%emt 0:00:25]} Qh2 {[%emt 0:00:35] ...Ke7 is the strong threat.} 31. Bxc5 $1 {[%emt 0:01:00][%cal Oe2b5][%mdl 64] Double Attack} Kf8 {[%emt 0:03:21]} (31... Ke7 $14 32. Bg1 (32. Bxb6 Ne5 $16) 32... Qg3) 32. Bxb6 {[%emt 0:01:42]} ({White should try} 32. Bxd6+ $18 Kg8 33. Kb3) 32... Bd7 {[%emt 0:01:10]} 33. Bd4 $2 {[%emt 0:04:09]} (33. a5 $16) 33... Ne5 $2 {[%emt 0:02:11]} (33... Bxa4+ $1 $15 {stays ahead.} 34. b3 (34. Nxa4 Bxd4 35. Re1 Ne5 $15) 34... Bxd4 35. Qxd4 Bb5) 34. Rd1 {[%emt 0:01:53]} Ke7 {[%emt 0:02:09]} 35. Kb1 {[%emt 0:00:35]} Qh6 {[%emt 0:01:25]} 36. a5 {[%emt 0:01:02]} Qh2 {[%emt 0:00:45]} 37. Rf1 {[%emt 0:01:02]} Ng6 {[%emt 0:00:28]} 38. Bxf6+ {[%emt 0:00:09]} Kxf6 {[%emt 0:00:15]} 39. Qd4+ {[%emt 0:00:10]} Ne5 $2 {[%emt 0:00:12]} (39... Ke7 $16 40. Qb6 Qh8 41. Bxa6 Qd8) 40. Qb6 $1 $18 {[%emt 0:00:56][%csl LRa6,LRd6]} Ke7 {[%emt 0:00:09]} 41. Bxa6 {[%emt 0:35:31]} Qh8 {[%emt 0:31:38]} 42. Be2 {[%emt 0:03:06]} Rb8 {[%emt 0:00:12]} 43. Qd4 {[%emt 0:00:22]} (43. Qc7 Ra8 44. Rc1 Qb8 45. Qxb8 Rxb8 $18) 43... Qd8 {[%emt 0:00:48] [#]} 44. a6 {[%emt 0:00:37]} Qa5 {[%emt 0:00:11]} 45. Rc1 {[%emt 0:01:05]} Rb4 {[%emt 0:02:00]} 46. Qd2 {[%emt 0:01:07]} Bc8 {[%emt 0:01:29]} (46... Ra4 $142 47. Kc2 (47. Qxf4 Ra1+ 48. Kc2 Ba4+ 49. b3 Bxb3+ {[%mdl 64] Decoy} 50. Kxb3 Ra3+ 51. Kc2 Qxc3+ 52. Kd1 Qd4+ 53. Qd2 Qg1+ 54. Qe1 Qd4+ 55. Qd2 Qg1+ 56. Qe1 Qd4+ 57. Qd2 $11) 47... Ra2) 47. Na2 {[%emt 0:00:14]} ({Less strong is} 47. Qxf4 Bxa6 48. Qd2 Bxe2 {[%mdl 64] Remove Defender} 49. Nxe2 (49. Qxe2 Nc4 $11) 49... Nxf3 $16) 47... Nxf3 {[%emt 0:02:51]} 48. Bxf3 {[%emt 0:01:20] Never resign too early!   Weighted Error Value: White=0.57/Black=0.56} 1-0